Cogmind - Beta 12 @@@ ROGUE MODE // 2024.02.17 @ 16:56:54 Player: Epsilon Result: Destroyed by B-99 Colossus with Multirail Performance ------------- Evolutions (9) 4500 Regions Visited (33) 6600 Robots Destroyed (140) 700 Value Destroyed (3817) 3817 Prototype IDs (113) 2260 Alien Tech Used (2) 400 Bonus (14460) 14460 TOTAL SCORE: 32737 Bonus ------- High Alert Combat Kills 171 Aligned with FarCom 300 Met Data Miner 300 Met Zhirov 300 Met Warlord at Base 500 MAIN.C Attacked Warlord 500 Found Hidden Lab 3000 Met Warlord at Research 2000 Hacked God Mode 5000 Pursued by Intercept 500 Met Warlord at Command 2000 Friendly Fire -111 Cogmind --------- Core Integrity 0/1600 Matter 300/300 Energy 100/100 System Corruption 4% Temperature Cool (0) Movement Core (50) Location -1/Command Parts ------- > --- POWER (2) -------- (None) > --- PROPULSION (6) --- (None) > --- UTILITY (15) ----- (None) > --- WEAPON (2) ------- (None) > --- INVENTORY (5) ---- Light Fission Core Nuclear Pulse Thruster Cooled Nuclear Pulse Thruster Improved Diametric Drive Enhanced Force Lance Peak State ------------ > --- POWER ------------ Backup Power VII Micro Antimatter Reactor > --- PROPULSION ------- Experimental Cesium-ion Thruster Cooled Field Propulsion Drive Cooled Field Propulsion Drive Cooled Field Propulsion Drive Electron Diverter Improved Diametric Drive > --- UTILITY ---------- Experimental Heat Sink Medium Storage Unit Long-range Terrain Scanner Experimental Cloaking Device Experimental Propulsion Shielding Experimental Utility Shielding Light Regenerative Plating Advanced Hacking Suite Experimental Hacking Suite Experimental Hacking Suite Experimental Hacking Suite Deep Network Scanner Experimental System Shield > --- WEAPON ----------- Centrium Greatsword > --- INVENTORY -------- Light Neutrino Core Micro Antimatter Reactor Improved Q-thruster Experimental Propulsion Shielding Experimental Utility Shielding Mini Smartbomb Launcher Advanced Datajack Plasma Lance [Rating: 176] Favorites ----------- Power Backup Power VII Engine Ion Engine Power Core Backup Power VII Reactor Micro Antimatter Reactor Propulsion Experimental Cesium-ion Thruster Treads Light Treads Flight Unit Experimental Cesium-ion Thruster Utility Experimental Hacking Suite Device Structural Scanner Storage Medium Storage Unit Processor Transport Network Coupler Hackware Experimental Hacking Suite Protection Experimental Utility Shielding Weapon Greatsword Energy Gun Precision Beam Rifle Ballistic Gun Light Assault Rifle Ballistic Cannon Light Cannon Launcher Mini Smartbomb Launcher Impact Weapon Hammer Slashing Weapon Greatsword Piercing Weapon Plasma Lance Special Melee Weapon Improved Datajack Build | -11 -10 -10 -10 -9 -8 -7 -7 -7 -6 -6 -6 -6 -6 -6 -5 -5 -5 -5 -5 -5 -5 -4 -4 -4 -4 -4 -3 -3 -3 -3 -2 -1 -1 ------- Run | Jun Mat Min Exi Min Mat Fac Was Fac Fac Was Fac Low Low Dat Pro Fac Was Fac Upp Upp Zhi Pro Fac Upp Upp War Pro Res Arm Lab Res Acc Com Slots Evolved 18 | . . . . . 4 2 . . 2 . . . . . . 2 . . . . . . 2 . . . . 2 . . 2 2 . Power 1 | . . . . . . . . . . . . . . . . . . . . . . . 1 . . . . . . . . . . Propulsion 4 | . . . . . 2 . . . 1 . . . . . . . . . . . . . 1 . . . . . . . . . . Utility 13 | . . . . . 2 2 . . 1 . . . . . . 2 . . . . . . . . . . . 2 . . 2 2 . Weapon . | . . . . . . . . . . . . . . . . . . . . . . . . . . . . . . . . . . Parts Attached 314 | 6 9 10 2 4 19 56 . 14 39 2 25 2 3 2 . 26 . 8 . . 4 3 21 . . 10 . 18 1 3 17 . 10 Power 31 | 1 1 1 1 2 1 3 . 2 3 . . . 1 . . 2 . . . . . 1 4 . . . . 2 . . 3 . 3 Engine 7 | 1 1 1 . 2 1 1 . . . . . . . . . . . . . . . . . . . . . . . . . . . Core 15 | . . . 1 . . 2 . 2 2 . . . 1 . . 1 . . . . . 1 4 . . . . . . . 1 . . Reactor 9 | . . . . . . . . . 1 . . . . . . 1 . . . . . . . . . . . 2 . . 2 . 3 Propulsion 66 | 2 1 1 . . 6 12 . 6 5 . 7 . . . . 2 . . . . . . 8 . . 2 . 6 . . 3 . 5 Treads 9 | 2 1 1 . . 5 . . . . . . . . . . . . . . . . . . . . . . . . . . . . Leg . | . . . . . . . . . . . . . . . . . . . . . . . . . . . . . . . . . . Wheel . | . . . . . . . . . . . . . . . . . . . . . . . . . . . . . . . . . . Hover . | . . . . . . . . . . . . . . . . . . . . . . . . . . . . . . . . . . Flight 57 | . . . . . 1 12 . 6 5 . 7 . . . . 2 . . . . . . 8 . . 2 . 6 . . 3 . 5 Utility 137 | 1 3 3 1 . 4 22 . 6 23 2 16 . . . . 17 . 4 . . 4 . 7 . . 4 . 8 1 3 6 . 2 Device 19 | . 1 2 . . 1 5 . . 3 . . . . . . . . . . . . . . . . 2 . 2 1 . 1 . 1 Storage 10 | 1 2 1 1 . 1 1 . 2 . . . . . . . . . . . . 1 . . . . . . . . . . . . Processor 4 | . . . . . 1 . . . . 1 1 . . . . 1 . . . . . . . . . . . . . . . . . Hackware 49 | . . . . . . 11 . 4 9 . 9 . . . . 6 . 2 . . . . 3 . . . . 2 . 1 1 . 1 Protection 55 | . . . . . 1 5 . . 11 1 6 . . . . 10 . 2 . . 3 . 4 . . 2 . 4 . 2 4 . . Artifact . | . . . . . . . . . . . . . . . . . . . . . . . . . . . . . . . . . . Weapon 80 | 2 4 5 . 2 8 19 . . 8 . 2 2 2 2 . 5 . 4 . . . 2 2 . . 4 . 2 . . 5 . . Energy Gun 6 | 1 1 . . . 4 . . . . . . . . . . . . . . . . . . . . . . . . . . . . Energy Cannon . | . . . . . . . . . . . . . . . . . . . . . . . . . . . . . . . . . . Ballistic Gun 5 | 1 . 1 . 1 2 . . . . . . . . . . . . . . . . . . . . . . . . . . . . Ballistic Cannon 3 | . 2 . . . 1 . . . . . . . . . . . . . . . . . . . . . . . . . . . . Launcher 8 | . . 2 . 1 . . . . . . . 1 1 . . . . 1 . . . 1 . . . . . . . . 1 . . Special Weapon . | . . . . . . . . . . . . . . . . . . . . . . . . . . . . . . . . . . Impact Weapon 4 | . 1 2 . . . 1 . . . . . . . . . . . . . . . . . . . . . . . . . . . Slashing Weapon 34 | . . . . . 1 12 . . 5 . 1 1 1 . . 3 . 3 . . . . 2 . . 2 . 1 . . 2 . . Piercing Weapon 4 | . . . . . . . . . . . 1 . . 1 . . . . . . . . . . . . . 1 . . 1 . . Special Melee Weapon 16 | . . . . . . 6 . . 3 . . . . 1 . 2 . . . . . 1 . . . 2 . . . . 1 . . Unidentified Prototypes 19 | . . 1 . . 2 1 . 1 1 1 . . . . . 1 . . . . 3 . 1 . . 3 . 2 . 1 1 . . Corrupted Parts 1 | . . . 1 . . . . . . . . . . . . . . . . . . . . . . . . . . . . . . System Corruption 1 | . . . 1 . . . . . . . . . . . . . . . . . . . . . . . . . . . . . . Parts Lost 52 | . . 2 . 1 6 5 . 1 . . . . 1 . . . . . . . . 1 . . . . . 1 . . 10 7 17 Power 11 | . . 1 . 1 1 . . . . . . . 1 . . . . . . . . 1 . . . . . 1 . . 3 . 2 Propulsion 20 | . . 1 . . 5 4 . 1 . . . . . . . . . . . . . . . . . . . . . . . 2 7 Utility 17 | . . . . . . 1 . . . . . . . . . . . . . . . . . . . . . . . . 5 4 7 Weapon 4 | . . . . . . . . . . . . . . . . . . . . . . . . . . . . . . . 2 1 1 Highest Loss Streak 11 | . . 1 . 1 2 2 . 1 . . . . 1 . . . . . . . . 1 . . . . . 1 . . 7 7 11 To Critical Strikes . | . . . . . . . . . . . . . . . . . . . . . . . . . . . . . . . . . . Average Slot Usage (%) 86 | . 95 99 100 83 74 85 92 91 91 93 91 93 92 97 100 92 94 93 94 94 94 95 87 94 94 94 94 89 95 95 81 71 48 Engine 2 | . 14 14 13 12 8 . . . . . . . . . . . . . . . . . . . . . . . . . . . . Core 4 | . . . . . . 6 7 7 6 6 6 6 5 6 6 5 5 5 5 5 5 5 6 10 10 10 10 5 4 4 2 . . Treads 5 | . 28 27 28 28 18 . . . . . . . . . . . . . . . . . . . . . . . . . . . . Flight 21 | . . . . . . 27 30 29 33 33 32 33 33 33 33 28 29 29 29 29 29 29 27 31 31 31 31 27 28 28 26 22 13 Device 3 | . 9 13 14 14 9 3 . . . . . . . . . . . . . . . . . . . . . 2 9 9 11 10 5 Storage 6 | . 14 14 14 14 9 1 7 6 6 6 6 6 6 6 6 5 5 5 5 5 5 5 5 5 5 5 5 4 4 4 2 . . Processor 1 | . . . . . 8 2 . . . 2 . . . . . 2 . . . . . . . . . . . . . . . . . Hackware 21 | . . . . . . 28 38 38 33 33 33 33 33 33 33 30 29 29 29 29 29 29 26 26 26 26 26 24 23 23 24 23 19 Protection 6 | . . . . . 4 4 . . 4 4 5 6 6 6 6 10 17 16 17 17 17 17 14 15 15 15 15 13 14 14 8 3 . Energy Gun 2 | . 9 . . . 13 . . . . . . . . . . . . . . . . . . . . . . . . . . . . Ballistic Gun 1 | . 13 3 14 12 1 . . . . . . . . . . . . . . . . . . . . . . . . . . . . Ballistic Cannon 1 | . 4 14 14 2 . . . . . . . . . . . . . . . . . . . . . . . . . . . . . Slashing Weapon 3 | . . . . . . 6 7 7 5 6 3 6 4 . . 4 5 4 5 5 5 3 4 5 5 5 5 3 4 4 1 . . Naked Turns 8 | . . . . . . . . . . . . . . . . . . . . . . . . . . . . . . . . . 8 Heaviest Build 70 | 13 16 22 51 56 70 20 20 21 25 20 20 22 22 20 19 26 25 25 25 25 25 26 34 34 34 34 34 37 34 34 40 18 36 Greatest Support 82 | 40 40 40 40 40 82 21 21 21 26 25 27 27 27 27 27 27 27 27 27 27 27 27 36 36 36 38 38 41 41 41 45 31 47 Greatest Overweight (x) 16 | . . . 1 1 16 1 . 1 . . . . . . . 1 . . . . . . 1 . . . . . . . 1 . . Average Overweight (x) . | . . . . 1 1 . . . . . . . . . . . . . . . . . . . . . . . . . . . . Largest Inventory Capacity 25 | 8 25 10 20 20 20 20 10 10 10 10 10 10 10 10 10 10 10 10 10 10 10 10 10 10 10 10 10 10 10 10 10 5 5 Average Capacity 10 | 7 8 9 11 20 20 6 10 9 10 10 10 10 10 10 10 10 10 10 10 10 10 10 10 10 10 10 10 10 10 10 7 5 5 Most Carried 20 | 6 8 10 11 13 20 20 5 10 10 10 10 10 10 9 9 10 10 10 10 10 10 10 10 10 10 10 9 10 9 9 10 5 5 Average Carried 9 | 2 7 9 10 11 18 4 5 8 9 9 8 9 9 8 9 9 10 9 10 10 9 9 9 10 10 9 9 9 8 8 5 3 4 Final Capacity 20 | 8 8 10 20 20 20 10 10 10 10 10 10 10 10 10 10 10 10 10 10 10 10 10 10 10 10 10 10 10 10 10 5 5 5 Final Carried 20 | 4 8 10 11 11 20 5 5 10 10 10 10 10 9 9 9 10 10 10 10 10 9 9 10 10 10 9 9 9 8 9 3 5 5 Class Distribution -------------------- 58% | Wizard-Sprinter 13% | Mutant 11% | Skirmisher 7% | Hacker-Sprinter Dominant Class ---------------- Mutant | -10/Materials Mutant | -10/Mines Mutant | -10/Exiles Mutant | -9/Mines Skirmisher | -8/Materials Hacker-Sprinter | -7/Factory Wizard-Sprinter | -7/Waste Wizard-Sprinter | -7/Factory Wizard-Sprinter | -6/Factory Wizard-Sprinter | -6/Waste Wizard-Sprinter | -6/Factory Wizard-Sprinter | -6/Lower Caves Wizard-Sprinter | -6/Lower Caves Wizard-Sprinter | -6/Data Miner Wizard-Sprinter | -5/Proximity Caves Wizard-Sprinter | -5/Factory Wizard-Sprinter | -5/Waste Wizard-Sprinter | -5/Factory Wizard-Sprinter | -5/Upper Caves Wizard-Sprinter | -5/Upper Caves Wizard-Sprinter | -5/Zhirov Wizard-Sprinter | -4/Proximity Caves Wizard-Sprinter | -4/Factory Wizard-Sprinter | -4/Upper Caves Wizard-Sprinter | -4/Upper Caves Wizard-Sprinter | -4/Warlord Wizard-Sprinter | -3/Proximity Caves Wizard-Sprinter | -3/Research Wizard-Sprinter | -3/Armory Wizard-Sprinter | -3/Lab Wizard-Ninja | -2/Research Wizard-Ninja | -1/Access Wizard-Sprinter | -1/Command Resources | -11 -10 -10 -10 -9 -8 -7 -7 -7 -6 -6 -6 -6 -6 -6 -5 -5 -5 -5 -5 -5 -5 -4 -4 -4 -4 -4 -3 -3 -3 -3 -2 -1 -1 ----------- Run | Jun Mat Min Exi Min Mat Fac Was Fac Fac Was Fac Low Low Dat Pro Fac Was Fac Upp Upp Zhi Pro Fac Upp Upp War Pro Res Arm Lab Res Acc Com Matter Collected 4174 | 247 100 186 . 123 299 510 . 157 533 . 373 5 2 . 46 315 . 150 . 18 . 48 238 57 58 . . 119 . . 515 . 75 Remotely . | . . . . . . . . . . . . . . . . . . . . . . . . . . . . . . . . . . Salvage Created 5098 | . 336 200 . 181 1746 523 . 157 428 . 237 22 46 . 12 229 . 150 . . . 105 . . 39 . . 119 . . 535 . 33 Parts 277 | . 18 18 . 20 97 22 . 11 15 . 11 2 2 . 1 6 . 12 . . . 11 . . 3 . . 6 . . 20 . 2 Haulers Intercepted 16 | . 1 . . . 5 6 . 1 1 . 1 . . . . 1 . . . . . . . . . . . . . . . . . Recyclers Shooed 1 | . . . . . . . . . 1 . . . . . . . . . . . . . . . . . . . . . . . . Parts Field Recycled . | . . . . . . . . . . . . . . . . . . . . . . . . . . . . . . . . . . Retrieved Matter . | . . . . . . . . . . . . . . . . . . . . . . . . . . . . . . . . . . Parts Self-Destructed 8 | . . . . . . . . . . . . 2 . . 1 . . . . . . 5 . . . . . . . . . . . Prevented . | . . . . . . . . . . . . . . . . . . . . . . . . . . . . . . . . . . Kills | -11 -10 -10 -10 -9 -8 -7 -7 -7 -6 -6 -6 -6 -6 -6 -5 -5 -5 -5 -5 -5 -5 -4 -4 -4 -4 -4 -3 -3 -3 -3 -2 -1 -1 ------- Run | Jun Mat Min Exi Min Mat Fac Was Fac Fac Was Fac Low Low Dat Pro Fac Was Fac Upp Upp Zhi Pro Fac Upp Upp War Pro Res Arm Lab Res Acc Com Combat Hostiles Destroyed 81 | . 8 12 . 8 31 2 . 1 . . 1 3 3 . 1 . . 1 . . . 5 . . . . . . . . 5 . . Melee 10 | . . . . . 3 2 . 1 . . 1 . . . 1 . . 1 . . . 1 . . . . . . . . . . . Guns 36 | . 4 1 . 4 27 . . . . . . . . . . . . . . . . . . . . . . . . . . . . Cannons 4 | . 1 3 . . . . . . . . . . . . . . . . . . . . . . . . . . . . . . . AOE 28 | . 3 6 . 4 . . . . . . . 3 3 . . . . . . . . 4 . . . . . . . . 5 . . Classes Destroyed 13 | . 4 1 . . 5 1 . . . . . . 1 . 1 . . . . . . . . . . . . . . . . . . Worker 4 | . . . . . 4 . . . . . . . . . . . . . . . . . . . . . . . . . . . . Builder 3 | . . 1 . 1 1 . . . . . . . . . . . . . . . . . . . . . . . . . . . . Hauler 16 | . 1 . . . 5 6 . 1 1 . 1 . . . . 1 . . . . . . . . . . . . . . . . . Recycler 7 | . . . . . 1 1 . . 2 . 1 . . . . . . . . . . . . . . . . . . . 2 . . Operator 9 | . 2 . . . 3 1 . . 1 . . . . . . . . . . . . . . . . . . 1 . . 1 . . Drone 1 | . . . . . . . . . . . . . . . 1 . . . . . . . . . . . . . . . . . . Watcher 20 | . . . . . 2 2 . 2 2 . . . . . . 4 . 3 . . . . . . . . . 2 . . 2 . 1 Swarmer 36 | . 3 8 . 4 8 . . . . . . 3 3 . . . . . . . . 4 . . . . . . . . 3 . . Grunt 33 | . 5 4 . 4 19 . . . . . . . . . . . . 1 . . . . . . . . . . . . . . . Duelist 2 | . . . . . 2 . . . . . . . . . . . . . . . . . . . . . . . . . . . . Sentry 2 | . . . . . 2 . . . . . . . . . . . . . . . . . . . . . . . . . . . . Programmer 5 | . . . . . . 2 . 1 . . 1 . . . . . . . . . . 1 . . . . . . . . . . . Tracker 2 | . . . . . . . . . . . . . . . . . . . . . . . . . . . . . . . 2 . . Samaritan 2 | . . . . . . . . . . . . . 1 . . . . . . . . . . . 1 . . . . . . . . Best Kill Streak 13 | . 3 5 . 8 13 1 . 2 1 . 1 3 3 . 1 2 . 1 . . . 4 . . . . . 1 . . 5 . 1 Combat Bots Only 7 | . 3 5 . 7 5 1 . 1 . . 1 3 3 . 1 . . 1 . . . 4 . . . . . . . . 5 . . Max Kills in Single Turn 4 | . 3 4 . 2 2 1 . 1 1 . 1 1 2 . 1 1 . 1 . . . 4 . . 1 . . 1 . . 2 . 1 Gunslinging . | . . . . . . . . . . . . . . . . . . . . . . . . . . . . . . . . . . Exploded 4 | . 3 3 . 2 . . . . . . . 1 2 . . . . . . . . 4 . . . . . . . . 2 . . Melee 1 | . . . . . 1 1 . 1 . . 1 . . . 1 . . 1 . . . 1 . . . . . . . . . . . Uniques/NPCs Destroyed . | . . . . . . . . . . . . . . . . . . . . . . . . . . . . . . . . . . Combat | -11 -10 -10 -10 -9 -8 -7 -7 -7 -6 -6 -6 -6 -6 -6 -5 -5 -5 -5 -5 -5 -5 -4 -4 -4 -4 -4 -3 -3 -3 -3 -2 -1 -1 -------- Run | Jun Mat Min Exi Min Mat Fac Was Fac Fac Was Fac Low Low Dat Pro Fac Was Fac Upp Upp Zhi Pro Fac Upp Upp War Pro Res Arm Lab Res Acc Com Damage Taken 11330 | . 310 385 . 224 1151 641 . 184 539 . 349 66 73 46 73 35 . 67 21 147 . 391 143 . . . 79 501 . 81 2567 860 2397 Core 3313 | . 54 49 . 21 143 39 . 15 148 . 130 16 18 . 19 . . . . 20 . 133 23 . . . . 45 . . 825 152 1463 Absorbed by Shields 428 | . . . . . . . . . 20 . . . . . . . . . . . . . . . . . . 54 . . . . 354 Redirected to Shielding 991 | . . . . . 39 . . . 26 . 14 . . 41 12 . . 18 . 46 . 37 . . . . 18 101 . 25 614 . . Regen/Repaired (Parts) 2193 | . . . . . . 149 . 94 218 . 227 . . . . 259 . 42 25 22 13 26 378 . . . 37 435 . . 181 . 87 Core Remaining (%) 76 | 100 . . . 50 74 . . 92 . . . . . . 61 . . . . . . 84 . . . . 98 . . 89 43 . . Volleys Fired 128 | . 35 11 . 3 61 . . . . . . 3 6 . . . . 2 . . . 3 . . . . . . . . 4 . . Largest 2 | . 2 2 . 1 2 . . . . . . 1 1 . . . . 1 . . . 1 . . . . . . . . 1 . . Hottest 122 | . 60 59 . 30 122 . . . . . . 39 39 . . . . 80 . . . 80 . . . . . . . . 80 . . Shots Fired 290 | . 69 18 . 13 172 . . . . . . 3 6 . . . . 2 . . . 3 . . . . . . . . 4 . . Gun 244 | . 56 7 . 10 171 . . . . . . . . . . . . . . . . . . . . . . . . . . . . Cannon 21 | . 13 7 . . 1 . . . . . . . . . . . . . . . . . . . . . . . . . . . . Launcher 25 | . . 4 . 3 . . . . . . . 3 6 . . . . 2 . . . 3 . . . . . . . . 4 . . Special . | . . . . . . . . . . . . . . . . . . . . . . . . . . . . . . . . . . Kinetic 140 | . 47 14 . 10 69 . . . . . . . . . . . . . . . . . . . . . . . . . . . . Thermal 103 | . . . . . 103 . . . . . . . . . . . . . . . . . . . . . . . . . . . . Explosive 25 | . . 4 . 3 . . . . . . . 3 6 . . . . 2 . . . 3 . . . . . . . . 4 . . Electromagnetic 22 | . 22 . . . . . . . . . . . . . . . . . . . . . . . . . . . . . . . . Robot Hit Streak 18 | . 11 4 . 7 18 . . . . . . 14 1 . . . . . . . . . . . . . . . . . 1 . . Robot Miss Streak 6 | . 3 6 . 2 4 . . . . . . . 3 . . . . . . . . . . . . . . . . . . . . Penetration Max . | . . . . . . . . . . . . . . . . . . . . . . . . . . . . . . . . . . Secondary Targets 2 | . . . . . 2 . . . . . . . . . . . . . . . . . . . . . . . . . . . . Max Gunslinging Chain 1 | . . . . . 1 . . . . . . . . . . . . . . . . . . . . . . . . . . . . Autonomous 64 | . . . . 10 54 . . . . . . . . . . . . . . . . . . . . . . . . . . . . Shots Hit Robots 349 | . 47 15 . 9 142 42 . 7 20 . 8 1 1 2 1 18 . 5 . . . 1 1 . 1 10 . 5 . . 11 . 2 Core Hits 169 | . 22 14 . 9 66 9 . 3 4 . 3 3 7 . 1 2 . 2 . . . 5 . . 1 . . 2 . . 16 . . Critical Kills 1 | . . . . . 1 . . . . . . . . . . . . . . . . . . . . . . . . . . . . Critical Parts Destroyed 1 | . . 1 . . . . . . . . . . . . . . . . . . . . . . . . . . . . . . . Critical Strikes 17 | . 1 2 . . 9 3 . . . . . . . . . 1 . . . . . . . . . . . . . . . . 1 Burn 8 | . . . . . 8 . . . . . . . . . . . . . . . . . . . . . . . . . . . . Destroy 1 | . . . . . 1 . . . . . . . . . . . . . . . . . . . . . . . . . . . . Blast 1 | . . 1 . . . . . . . . . . . . . . . . . . . . . . . . . . . . . . . Corrupt 1 | . 1 . . . . . . . . . . . . . . . . . . . . . . . . . . . . . . . . Smash 1 | . . 1 . . . . . . . . . . . . . . . . . . . . . . . . . . . . . . . Sever 4 | . . . . . . 3 . . . . . . . . . 1 . . . . . . . . . . . . . . . . . Impale 1 | . . . . . . . . . . . . . . . . . . . . . . . . . . . . . . . . . 1 Melee Attacks 619 | . 1 10 . . 7 89 3 52 87 . 61 . 1 2 5 59 . 20 . 4 . 8 65 . 5 10 . 77 2 . 18 5 28 Impact 11 | . 1 10 . . . . . . . . . . . . . . . . . . . . . . . . . . . . . . . Slashing 500 | . . . . . 7 76 3 52 84 . 28 . 1 . . 58 . 20 . 4 . 8 65 . 5 . . 75 2 . 12 . . Piercing 76 | . . . . . . . . . . . 33 . . 1 5 . . . . . . . . . . . . 2 . . 2 5 28 Sneak Attacks 57 | . . . . . 1 22 . 1 9 . 2 . . 2 . 3 . 1 . . . . . . 1 10 . . . . 5 . . Combat Hostiles . | . . . . . . . . . . . . . . . . . . . . . . . . . . . . . . . . . . Follow-up Attacks . | . . . . . . . . . . . . . . . . . . . . . . . . . . . . . . . . . . Damage Inflicted 14742 | . 626 591 . 536 3532 1790 . 466 1495 . 588 274 517 86 42 1245 . 461 . . . 417 82 . 162 . . 429 . . 1270 . 133 Guns 3741 | . 423 42 . 249 3027 . . . . . . . . . . . . . . . . . . . . . . . . . . . . Cannons 211 | . 121 74 . . 16 . . . . . . . . . . . . . . . . . . . . . . . . . . . . Explosions 2596 | . 82 322 . 278 232 . . . . . . 274 517 . . . . . . . . 331 . . . . . . . . 560 . . Melee 8179 | . . 153 . . 251 1790 . 466 1495 . 588 . . 86 42 1245 . 461 . . . 86 82 . 162 . . 429 . . 710 . 133 Ramming 15 | . . . . 9 6 . . . . . . . . . . . . . . . . . . . . . . . . . . . . Kinetic 2336 | . 291 116 . 249 1680 . . . . . . . . . . . . . . . . . . . . . . . . . . . . Thermal 1677 | . 82 . . . 1595 . . . . . . . . . . . . . . . . . . . . . . . . . . . . Explosive 2210 | . . 322 . 278 . . . . . . . 274 517 . . . . . . . . 331 . . . . . . . . 488 . . Electromagnetic 325 | . 253 . . . . . . . . . . . . . . . . . . . . . . . . . . . . . 72 . . Impact 153 | . . 153 . . . . . . . . . . . . . . . . . . . . . . . . . . . . . . . Slashing 7729 | . . . . . 251 1790 . 466 1495 . 588 . . . . 1245 . 461 . . . 86 82 . 162 . . 429 . . 674 . . Piercing 297 | . . . . . . . . . . . . . . 86 42 . . . . . . . . . . . . . . . 36 . 133 Highest Corruption 50 | . . . 1 1 . 1 11 16 7 7 8 8 8 8 8 . . . . . . 3 . . . . . 5 5 6 50 . 4 Average Corruption 6 | . . . 1 1 . 1 8 13 5 7 7 8 8 8 8 . . . . . . 2 . . . . . 3 5 5 15 . 2 Corruption Purged . | . . . . . . . . . . . . . . . . . . . . . . . . . . . . . . . . . . Corruption Blocked . | . . . . . . . . . . . . . . . . . . . . . . . . . . . . . . . . . . Effects 164 | . . . . 1 . 5 4 51 35 1 23 2 2 1 3 . . . . . . 1 . . . . . 14 . 1 14 . 6 Message Errors 29 | . . . . . . . 1 9 7 1 5 . . . . . . . . . . . . . . . . 3 . . 2 . 1 Matter Fused 44 | . . . . . . 1 1 14 9 . 7 . 2 1 . . . . . . . . . . . . . 4 . . 4 . 1 Heat Flow Errors 31 | . . . . . . 2 . 9 5 . 5 . . . 1 . . . . . . . . . . . . 4 . . 2 . 3 Energy Discharges 21 | . . . . . . 1 . 7 6 . 1 . . . 1 . . . . . . 1 . . . . . 3 . . 1 . . Parts Rejected 2 | . . . . . . . . . . . . . . . . . . . . . . . . . . . . . . . 1 . 1 Parts Fused 1 | . . . . . . . . . . . . . . . . . . . . . . . . . . . . . . . 1 . . Data Loss (minor) 17 | . . . . . . . . 3 7 . 3 2 . . 1 . . . . . . . . . . . . . . 1 . . . Data Loss (major) 10 | . . . . . . 1 . 7 1 . 1 . . . . . . . . . . . . . . . . . . . . . . Alerts 3 | . . . . 1 . . . . . . 1 . . . . . . . . . . . . . . . . . . . 1 . . Misdirections 6 | . . . . . . . 2 2 . . . . . . . . . . . . . . . . . . . . . . 2 . . Overload Shots . | . . . . . . . . . . . . . . . . . . . . . . . . . . . . . . . . . . Overflow Damage 1998 | . . 20 . 10 188 168 . 68 465 . 107 13 76 26 . 310 . 87 . . . . 12 . . . . 118 . . 195 . 135 Projectiles . | . . . . . . . . . . . . . . . . . . . . . . . . . . . . . . . . . . Explosions 227 | . . 3 . 10 117 . . . . . . 13 76 . . . . . . . . . . . . . . . . . 8 . . Melee 1771 | . . 17 . . 71 168 . 68 465 . 107 . . 26 . 310 . 87 . . . . 12 . . . . 118 . . 187 . 135 Knockbacks 3 | . 3 . . . . . . . . . . . . . . . . . . . . . . . . . . . . . . . . Impact . | . . . . . . . . . . . . . . . . . . . . . . . . . . . . . . . . . . Kinetic 3 | . 3 . . . . . . . . . . . . . . . . . . . . . . . . . . . . . . . . Secondary . | . . . . . . . . . . . . . . . . . . . . . . . . . . . . . . . . . . Self-Inflicted Damage 191 | . 31 32 . 77 . . . . . . . . 6 . . . . . . . . . . . . . . . . . 45 . . Shots 7 | . 1 1 . 3 . . . . . . . . 1 . . . . . . . . . . . . . . . . . 1 . . Rammed 4 | . . . . 2 2 . . . . . . . . . . . . . . . . . . . . . . . . . . . . Targets Rammed 5 | . . . . 3 2 . . . . . . . . . . . . . . . . . . . . . . . . . . . . Kicked . | . . . . . . . . . . . . . . . . . . . . . . . . . . . . . . . . . . Crushed 1 | . . . . 1 . . . . . . . . . . . . . . . . . . . . . . . . . . . . . Highest Temperature 360 | . 117 9 . . 348 272 . 266 360 35 287 74 140 35 200 144 67 123 111 143 74 348 226 130 183 213 121 196 . . 277 . 255 Average Temperature 56 | . 38 7 . . 107 112 . 109 35 18 49 31 51 14 54 27 35 38 37 56 29 138 55 44 53 71 45 58 . . 114 . 126 Received Heat Transfer 1523 | . 180 123 . 48 603 105 . 33 84 . 84 9 . . 9 . . 36 . 48 . 18 12 . . . . 53 . . 36 18 24 Effects 6 | . . . . . 1 . . . . . . . . . . . . . . . . . 2 . . . . . . . 3 . . Energy Bleed 1 | . . . . . 1 . . . . . . . . . . . . . . . . . . . . . . . . . . . . Interference 5 | . . . . . . . . . . . . . . . . . . . . . . . 2 . . . . . . . 3 . . Siege Activations . | . . . . . . . . . . . . . . . . . . . . . . . . . . . . . . . . . . Robots Corrupted 1 | . 1 . . . . . . . . . . . . . . . . . . . . . . . . . . . . . . . . Combat Hostiles . | . . . . . . . . . . . . . . . . . . . . . . . . . . . . . . . . . . Parts Fried 4 | . 3 1 . . . . . . . . . . . . . . . . . . . . . . . . . . . . . . . Impact Corruptions 2 | . . 2 . . . . . . . . . . . . . . . . . . . . . . . . . . . . . . . Robots Melted 1 | . . . . . 1 . . . . . . . . . . . . . . . . . . . . . . . . . . . . Combat Hostiles 1 | . . . . . 1 . . . . . . . . . . . . . . . . . . . . . . . . . . . . Parts Melted 7 | . . . . . 7 . . . . . . . . . . . . . . . . . . . . . . . . . . . . Heat Transferred 3802 | . 50 . . . 3752 . . . . . . . . . . . . . . . . . . . . . . . . . . . . Parts Sabotaged . | . . . . . . . . . . . . . . . . . . . . . . . . . . . . . . . . . . Parts Stolen . | . . . . . . . . . . . . . . . . . . . . . . . . . . . . . . . . . . Parts Stripped . | . . . . . . . . . . . . . . . . . . . . . . . . . . . . . . . . . . Power Chain Reactions 1 | . 1 . . . . . . . . . . . . . . . . . . . . . . . . . . . . . . . . Missiles Intercepted . | . . . . . . . . . . . . . . . . . . . . . . . . . . . . . . . . . . Alert | -11 -10 -10 -10 -9 -8 -7 -7 -7 -6 -6 -6 -6 -6 -6 -5 -5 -5 -5 -5 -5 -5 -4 -4 -4 -4 -4 -3 -3 -3 -3 -2 -1 -1 ------- Run | Jun Mat Min Exi Min Mat Fac Was Fac Fac Was Fac Low Low Dat Pro Fac Was Fac Upp Upp Zhi Pro Fac Upp Upp War Pro Res Arm Lab Res Acc Com Peak Influence 614 | . 213 286 . 204 591 574 61 187 448 114 404 . . . . 250 153 202 . . . . 396 . . . . 427 223 . 614 328 253 Initial 268 | . . 71 . . 79 247 44 42 49 99 79 . . . . 209 78 107 . . . . 157 . . . . 70 208 . . 268 174 Average 222 | . 138 220 . 148 407 242 59 77 182 108 233 . . . . 158 100 127 . . . . 249 . . . . 241 219 . 222 289 137 Maximum Alert Level 2 | . 1 1 . 1 2 2 . . 2 . 2 . . . . 1 . 1 . . . . 1 . . . . 2 1 . 2 1 1 Low Security (%) 52 | 100 84 35 . 85 11 49 100 100 64 100 34 . . . . 64 100 98 . . . . 37 . . . . 39 . . 49 . 65 Level 1 35 | . 15 64 . 14 30 38 . . 33 . 63 . . . . 35 . 1 . . . . 62 . . . . 57 100 . 29 100 34 Level 2 12 | . . . . . 58 11 . . 2 . 2 . . . . . . . . . . . . . . . . 2 . . 21 . . Level 3 . | . . . . . . . . . . . . . . . . . . . . . . . . . . . . . . . . . . Level 4 . | . . . . . . . . . . . . . . . . . . . . . . . . . . . . . . . . . . Level 5 . | . . . . . . . . . . . . . . . . . . . . . . . . . . . . . . . . . . High Security . | . . . . . . . . . . . . . . . . . . . . . . . . . . . . . . . . . . Max Security . | . . . . . . . . . . . . . . . . . . . . . . . . . . . . . . . . . . Squads Dispatched 70 | . 1 . . 1 5 14 . 7 9 . 6 . . . . 8 . . . . . 1 7 . . . . 6 . . 3 . 2 Investigation 37 | . . . . . 3 8 . 4 6 . 5 . . . . 6 . . . . . . 3 . . . . 2 . . . . . Extermination 13 | . . . . . . 3 . 2 1 . 1 . . . . 1 . . . . . . 3 . . . . 1 . . . . 1 Reinforcement 15 | . 1 . . 1 2 3 . 1 2 . . . . . . 1 . . . . . . . . . . . 3 . . . . 1 Assault 2 | . . . . . . . . . . . . . . . . . . . . . . 1 1 . . . . . . . . . . Garrison . | . . . . . . . . . . . . . . . . . . . . . . . . . . . . . . . . . . Intercept 3 | . . . . . . . . . . . . . . . . . . . . . . . . . . . . . . . 3 . . Searches Triggered 2 | . . . . . . 1 . . 1 . . . . . . . . . . . . . . . . . . . . . . . . Construction Impeded 1 | . . . . 1 . . . . . . . . . . . . . . . . . . . . . . . . . . . . . Haulers Reinforced 3 | . . . . . . 1 . . 1 . . . . . . 1 . . . . . . . . . . . . . . . . . Active Scanning Responses . | . . . . . . . . . . . . . . . . . . . . . . . . . . . . . . . . . . Cargo Convoy Interrupts . | . . . . . . . . . . . . . . . . . . . . . . . . . . . . . . . . . . Stealth | -11 -10 -10 -10 -9 -8 -7 -7 -7 -6 -6 -6 -6 -6 -6 -5 -5 -5 -5 -5 -5 -5 -4 -4 -4 -4 -4 -3 -3 -3 -3 -2 -1 -1 --------- Run | Jun Mat Min Exi Min Mat Fac Was Fac Fac Was Fac Low Low Dat Pro Fac Was Fac Upp Upp Zhi Pro Fac Upp Upp War Pro Res Arm Lab Res Acc Com Distress Signals 19 | . 1 . . . 2 1 . 1 3 . 1 . . . . 1 . . . . . . 1 . . . . 1 . . 5 1 1 Communications Jammed . | . . . . . . . . . . . . . . . . . . . . . . . . . . . . . . . . . . Distress Signals . | . . . . . . . . . . . . . . . . . . . . . . . . . . . . . . . . . . Times Spotted 476 | . 19 15 . 8 41 29 6 25 44 5 20 5 6 4 7 23 2 10 3 6 . 25 22 . 1 . 7 52 . 1 38 14 38 Peak Tracking Total 15 | . 4 3 . 4 7 6 6 7 6 6 9 3 3 4 7 8 2 5 3 6 . 15 7 . 1 . 7 8 . 1 14 15 12 Tactical Retreats 97 | . 1 3 . . 3 10 . 5 16 . 12 . . . 2 6 . . 1 1 . 3 10 . . . 2 12 . . 6 1 3 Traps | -11 -10 -10 -10 -9 -8 -7 -7 -7 -6 -6 -6 -6 -6 -6 -5 -5 -5 -5 -5 -5 -5 -4 -4 -4 -4 -4 -3 -3 -3 -3 -2 -1 -1 ------- Run | Jun Mat Min Exi Min Mat Fac Was Fac Fac Was Fac Low Low Dat Pro Fac Was Fac Upp Upp Zhi Pro Fac Upp Upp War Pro Res Arm Lab Res Acc Com Traps Triggered 34 | . . . . . . 6 . 1 8 . 3 . . . . 3 . . . . . . . . . . . 5 . . . . 8 Indirectly . | . . . . . . . . . . . . . . . . . . . . . . . . . . . . . . . . . . Trap Hack Attempts 12 | . . . . . . 5 . . . . . . . . . 7 . . . . . . . . . . . . . . . . . Triggered . | . . . . . . . . . . . . . . . . . . . . . . . . . . . . . . . . . . Disarmed 5 | . . . . . . 4 . . . . . . . . . 1 . . . . . . . . . . . . . . . . . Reprogrammed 20 | . . . . . . 2 . 6 1 . 4 . . . . 1 . . . . . . 6 . . . . . . . . . . Reused 5 | . . . . . . 1 . 3 1 . . . . . . . . . . . . . . . . . . . . . . . . Traps Extracted . | . . . . . . . . . . . . . . . . . . . . . . . . . . . . . . . . . . Installed . | . . . . . . . . . . . . . . . . . . . . . . . . . . . . . . . . . . Triggered 22 | . . . . . . 1 . 3 1 . . 1 . . . . . . . 1 . . . . . 14 . . . . . . 1 Exploded 1 | . . . 1 . . . . . . . . . . . . . . . . . . . . . . . . . . . . . . Machines | -11 -10 -10 -10 -9 -8 -7 -7 -7 -6 -6 -6 -6 -6 -6 -5 -5 -5 -5 -5 -5 -5 -4 -4 -4 -4 -4 -3 -3 -3 -3 -2 -1 -1 ---------- Run | Jun Mat Min Exi Min Mat Fac Was Fac Fac Was Fac Low Low Dat Pro Fac Was Fac Upp Upp Zhi Pro Fac Upp Upp War Pro Res Arm Lab Res Acc Com Machines Disabled 12 | . 2 . . . 5 . . . . . . . . . . . . 1 . . . . . . . . . 2 1 . 1 . . Max in Single Turn 4 | . 2 . . . 4 . . . . . . . . . . . . 1 . . . . . . . . . 1 1 . 1 . . Garrison Access 20 | . . . . . 1 . . 4 3 . 2 . . . . 4 . 1 . . . . 3 . . . . 2 . . . . . Machines Repaired . | . . . . . . . . . . . . . . . . . . . . . . . . . . . . . . . . . . Machines Sabotaged . | . . . . . . . . . . . . . . . . . . . . . . . . . . . . . . . . . . Overloaded Fab Kills . | . . . . . . . . . . . . . . . . . . . . . . . . . . . . . . . . . . Hacking | -11 -10 -10 -10 -9 -8 -7 -7 -7 -6 -6 -6 -6 -6 -6 -5 -5 -5 -5 -5 -5 -5 -4 -4 -4 -4 -4 -3 -3 -3 -3 -2 -1 -1 --------- Run | Jun Mat Min Exi Min Mat Fac Was Fac Fac Was Fac Low Low Dat Pro Fac Was Fac Upp Upp Zhi Pro Fac Upp Upp War Pro Res Arm Lab Res Acc Com Machines Accessed 237 | . 7 1 2 . 6 27 . 24 31 . 22 . 2 4 . 26 . 10 . . 5 . 24 1 . 4 . 18 . 2 4 5 12 Terminals 116 | . 6 . . . 3 13 . 11 16 . 12 . 1 . . 11 . 5 . . . . 13 . . . . 8 . . 2 5 10 Fabricators 34 | . . . . . . 6 . 4 6 . 4 . . . . 6 . 1 . . . . 5 . . . . 2 . . . . . Repair Stations 24 | . . . . . . 3 . 2 3 . 2 . . . . 3 . 1 . . . . 4 . . . . 3 . . 1 . 2 Recycling Units 11 | . 1 . . . . 3 . 2 2 . . . . . . 1 . 2 . . . . . . . . . . . . . . . Scanalyzers 13 | . . . . . 2 2 . 1 1 . 2 . . . . 1 . . . . . . . . . . . 3 . . 1 . . Garrison Access 19 | . . . . . 1 . . 4 3 . 2 . . . . 4 . 1 . . . . 2 . . . . 2 . . . . . Total Hacks 766 | . 24 1 24 . 16 76 . 62 100 . 81 . 2 27 . 94 . 34 . . 18 . 77 1 . 10 . 55 . 20 8 8 28 Successful 647 | . 14 1 24 . 9 63 . 53 80 . 68 . 2 27 . 83 . 29 . . 18 . 65 1 . 10 . 48 . 20 7 6 19 Failed 118 | . 10 . . . 7 13 . 9 19 . 13 . . . . 11 . 5 . . . . 12 . . . . 7 . . 1 2 9 Catastrophic 13 | . 2 . . . . 3 . 3 1 . 2 . . . . . . . . . . . 1 . . . . 1 . . . . . Database Lockouts 1 | . . . . . . . . . 1 . . . . . . . . . . . . . . . . . . . . . . . . Manual 335 | . 14 . 1 . 6 35 . 33 61 . 40 . . . . 49 . 17 . . . . 35 . . 1 . 20 . 1 2 4 16 Terminals 375 | . 23 . . . 6 35 . 36 57 . 39 . 1 . . 50 . 22 . . . . 48 . . . . 25 . . 2 8 23 Fabricators 144 | . . . . . . 25 . 11 28 . 22 . . . . 28 . 6 . . . . 16 . . . . 8 . . . . . Repair Stations 75 | . . . . . . 9 . 5 7 . 13 . . . . 8 . 3 . . . . 11 . . . . 12 . . 2 . 5 Recycling Units 13 | . 1 . . . . 3 . 3 3 . . . . . . 1 . 2 . . . . . . . . . . . . . . . Scanalyzers 34 | . . . . . 7 4 . 3 2 . 4 . . . . 2 . . . . . . . . . . . 8 . . 4 . . Garrison Access 23 | . . . . . 3 . . 4 3 . 3 . . . . 5 . 1 . . . . 2 . . . . 2 . . . . . Terminal Hacks 305 | . 10 1 24 . 1 18 . 18 28 . 18 . 2 27 . 33 . 15 . . 18 . 27 1 . 10 . 12 . 20 2 6 14 Record 74 | . . . 23 . . . . . . . . . 1 11 . 2 . . . . 6 . 5 . . 2 . 1 . 20 . . 3 Part Schematic 29 | . . . . . . 6 . . 3 . 1 . . 8 . 3 . 1 . . 4 . 2 . . . . 1 . . . . . Robot Schematic 5 | . . . . . . . . . . . . . . 5 . . . . . . . . . . . . . . . . . . . Robot Analysis 10 | . . . . . . 1 . . . . 1 . . . . 3 . 1 . . 4 . . . . . . . . . . . . Prototype ID Bank 24 | . 1 . . . . . . 2 1 . 1 . . 3 . 2 . 1 . . 4 . 2 . . 6 . 1 . . . . . Open Door 9 | . . 1 . . . . . . . . . . 1 . . . . . . . . . . 1 . 2 . 1 . . . 3 . Level Access Points 9 | . . . . . . . . 1 1 . . . . . . 2 . 1 . . . . 1 . . . . . . . 1 . 2 Branch Access Points 8 | . 1 . . . . . . . 1 . 2 . . . . . . 1 . . . . 1 . . . . 1 . . . 1 . Emergency Access Points 2 | . . . . . . . . 1 1 . . . . . . . . . . . . . . . . . . . . . . . . Machine Index 10 | . . . . . . . . 1 1 . 1 . . . . 1 . 1 . . . . 1 . . . . 1 . . 1 1 1 Terminal Index 2 | . . . . . . 1 . . . . 1 . . . . . . . . . . . . . . . . . . . . . . Recycling Unit Index 1 | . . . . . . 1 . . . . . . . . . . . . . . . . . . . . . . . . . . . Scanalyzer Index 1 | . . . . . . 1 . . . . . . . . . . . . . . . . . . . . . . . . . . . Alert Level 7 | . . . . . . 2 . . . . 1 . . . . 2 . . . . . . . . . . . 1 . . . . 1 Unreport Threat 7 | . . . . . . 1 . 1 1 . . . . . . 1 . . . . . . . . . . . 2 . . . . 1 Locate Traps 19 | . 3 . . . . 1 . . 3 . 2 . . . . 5 . 2 . . . . 3 . . . . . . . . . . Disarm Traps 1 | . . . . . . 1 . . . . . . . . . . . . . . . . . . . . . . . . . . . Reprogram Traps 6 | . . . . . . . . 1 2 . 1 . . . . . . . . . . . 1 . . . . . . . . 1 . Recall Investigation 6 | . . . . . . . . 1 3 . . . . . . 2 . . . . . . . . . . . . . . . . . Recall Extermination 7 | . . . . . . . . 1 1 . . . . . . 1 . . . . . . 3 . . . . 1 . . . . . Hauler Manifests 9 | . 1 . . . 1 1 . 1 1 . 1 . . . . 1 . 1 . . . . 1 . . . . . . . . . . Registered Components 8 | . 1 . . . . 1 . 1 1 . 1 . . . . 1 . 1 . . . . 1 . . . . . . . . . . Registered Prototypes 8 | . . . . . . 1 . 1 1 . 1 . . . . 1 . 2 . . . . 1 . . . . . . . . . . Zone Layout 41 | . 3 . . . . . . 6 7 . 4 . . . . 6 . 3 . . . . 5 . . . . 2 . . . . 5 EX-Prototype ID Bank 1 | . . . 1 . . . . . . . . . . . . . . . . . . . . . . . . . . . . . . Disengage Seal 1 | . . . . . . . . . . . . . . . . . . . . . . . . . . . . . . . . . 1 Fabricator Hacks 92 | . . . . . . 17 . 7 19 . 15 . . . . 16 . 4 . . . . 9 . . . . 5 . . . . . Network Status 3 | . . . . . . 1 . . 1 . 1 . . . . . . . . . . . . . . . . . . . . . . Load Schematic 59 | . . . . . . 11 . 5 12 . 9 . . . . 11 . 2 . . . . 6 . . . . 3 . . . . . Build 30 | . . . . . . 5 . 2 6 . 5 . . . . 5 . 2 . . . . 3 . . . . 2 . . . . . Repair Station Hacks 63 | . . . . . . 7 . 4 6 . 12 . . . . 7 . 2 . . . . 10 . . . . 11 . . 2 . 2 Scan Component 32 | . . . . . . 3 . 3 2 . 6 . . . . 3 . 1 . . . . 7 . . . . 5 . . 1 . 1 Repair 26 | . . . . . . 3 . 1 2 . 6 . . . . 3 . 1 . . . . 3 . . . . 5 . . 1 . 1 Refit 5 | . . . . . . 1 . . 2 . . . . . . 1 . . . . . . . . . . . 1 . . . . . Recycling Unit Hacks 11 | . 1 . . . . 3 . 2 2 . . . . . . 1 . 2 . . . . . . . . . . . . . . . Report Inventory 10 | . 1 . . . . 2 . 2 2 . . . . . . 1 . 2 . . . . . . . . . . . . . . . Retrieve Components 1 | . . . . . . 1 . . . . . . . . . . . . . . . . . . . . . . . . . . . Scanalyzer 31 | . . . . . 5 4 . 3 2 . 4 . . . . 2 . . . . . . . . . . . 8 . . 3 . . Insert Component 16 | . . . . . 3 2 . 1 1 . 2 . . . . 1 . . . . . . . . . . . 4 . . 2 . . Analyze 15 | . . . . . 2 2 . 2 1 . 2 . . . . 1 . . . . . . . . . . . 4 . . 1 . . Garrison Access Hacks 19 | . . . . . 1 . . 4 3 . 2 . . . . 4 . 1 . . . . 2 . . . . 2 . . . . . Seal Access 19 | . . . . . 1 . . 4 3 . 2 . . . . 4 . 1 . . . . 2 . . . . 2 . . . . . Unauthorized Hacks 126 | . 3 . . . 2 14 . 15 20 . 17 . . . . 20 . 5 . . . . 17 . . . . 10 . . . . 3 Terminals 75 | . 3 . . . 2 6 . 10 10 . 10 . . . . 10 . 4 . . . . 10 . . . . 7 . . . . 3 Track 8 | . . . . . . 1 . . . . 1 . . . . 3 . . . . . . 2 . . . . . . . . . 1 Assimilate 26 | . . . . . 1 1 . 4 6 . 2 . . . . 4 . 1 . . . . 4 . . . . 2 . . . . 1 Botnet 25 | . 2 . . . . 2 . 3 2 . 6 . . . . 2 . 2 . . . . 3 . . . . 2 . . . . 1 Disrupt 3 | . . . . . . . . 2 1 . . . . . . . . . . . . . . . . . . . . . . . . Operators 13 | . 1 . . . 1 2 . 1 1 . 1 . . . . 1 . 1 . . . . 1 . . . . 3 . . . . . Fabricators 49 | . . . . . . 8 . 4 9 . 7 . . . . 10 . 1 . . . . 7 . . . . 3 . . . . . Report 1 | . . . . . . . . . . . . . . . . . . . . . . . 1 . . . . . . . . . . Prioritize 19 | . . . . . . 2 . 1 3 . 3 . . . . 4 . 1 . . . . 3 . . . . 2 . . . . . Recompile 29 | . . . . . . 6 . 3 6 . 4 . . . . 6 . . . . . . 3 . . . . 1 . . . . . Repair Stations . | . . . . . . . . . . . . . . . . . . . . . . . . . . . . . . . . . . Recycling Units 2 | . . . . . . . . 1 1 . . . . . . . . . . . . . . . . . . . . . . . . Recyclers 2 | . . . . . . . . 1 1 . . . . . . . . . . . . . . . . . . . . . . . . Scanalyzers . | . . . . . . . . . . . . . . . . . . . . . . . . . . . . . . . . . . Garrison Access . | . . . . . . . . . . . . . . . . . . . . . . . . . . . . . . . . . . Data Cores Recovered 4 | . 1 . . . 1 1 . . 1 . . . . . . . . . . . . . . . . . . . . . . . . Used . | . . . . . . . . . . . . . . . . . . . . . . . . . . . . . . . . . . Hacking Detections 146 | . 4 . . . 6 19 . 13 20 . 15 . 1 . . 16 . 7 . . . . 16 . . . . 13 . . 3 2 11 Full Trace Events 5 | . . . . . 2 2 . 1 . . . . . . . . . . . . . . . . . . . . . . . . . Feedback Events . | . . . . . . . . . . . . . . . . . . . . . . . . . . . . . . . . . . Feedback Blocked . | . . . . . . . . . . . . . . . . . . . . . . . . . . . . . . . . . . Robot Schematics Acquired 5 | . . . . . . . . . . . . . . 5 . . . . . . . . . . . . . . . . . . . Robots Built . | . . . . . . . . . . . . . . . . . . . . . . . . . . . . . . . . . . Authchips . | . . . . . . . . . . . . . . . . . . . . . . . . . . . . . . . . . . Time . | . . . . . . . . . . . . . . . . . . . . . . . . . . . . . . . . . . Total Robot Build Rating . | . . . . . . . . . . . . . . . . . . . . . . . . . . . . . . . . . . Part Schematics Acquired 41 | . . . . . 2 8 . 1 4 . 3 . . 8 . 4 . 1 . . 4 . 1 . . . . 4 . . 1 . . Parts Built 30 | . . . . . . 5 . 2 6 . 5 . . . . 5 . 2 . . . . 3 . . . . 2 . . . . . Authchips 30 | . . . . . . 5 . 2 6 . 5 . . . . 5 . 2 . . . . 3 . . . . 2 . . . . . Time 2677 | . . . . . . 354 . 130 380 . 443 . . . . 583 . 87 . . . . 561 . . . . 139 . . . . . Total Part Build Rating 180 | . . . . . . 25 . 11 35 . 33 . . . . 28 . 12 . . . . 21 . . . . 15 . . . . . Parts Repaired 26 | . . . . . . 3 . 1 2 . 6 . . . . 3 . 1 . . . . 3 . . . . 5 . . 1 . 1 Time 1077 | . . . . . . 101 . 38 36 . 336 . . . . 113 . 22 . . . . 133 . . . . 229 . . 33 . 36 Parts Recycled . | . . . . . . . . . . . . . . . . . . . . . . . . . . . . . . . . . . Recycled Matter . | . . . . . . . . . . . . . . . . . . . . . . . . . . . . . . . . . . Retrieved Matter . | . . . . . . . . . . . . . . . . . . . . . . . . . . . . . . . . . . Retrieved Components 3 | . . . . . . 3 . . . . . . . . . . . . . . . . . . . . . . . . . . . Parts Scanalyzed 14 | . . . . . 3 2 . 1 1 . 2 . . . . 1 . . . . . . . . . . . 3 . . 1 . . Part Schematics Acquired 13 | . . . . . 2 2 . 1 1 . 2 . . . . 1 . . . . . . . . . . . 3 . . 1 . . Parts Damaged 2 | . . . . . . . . . . . . . . . . . . . . . . . . . . . . 2 . . . . . Bothacking | -11 -10 -10 -10 -9 -8 -7 -7 -7 -6 -6 -6 -6 -6 -6 -5 -5 -5 -5 -5 -5 -5 -4 -4 -4 -4 -4 -3 -3 -3 -3 -2 -1 -1 ------------ Run | Jun Mat Min Exi Min Mat Fac Was Fac Fac Was Fac Low Low Dat Pro Fac Was Fac Upp Upp Zhi Pro Fac Upp Upp War Pro Res Arm Lab Res Acc Com Used RIF Installer . | . . . . . . . . . . . . . . . . . . . . . . . . . . . . . . . . . . Robots Hacked 17 | . . . . . . 9 . . 3 . . . . 1 . 1 . . . . . . . . . 2 . . . . 1 . . Non-combat 13 | . . . . . . 9 . . 3 . . . . . . 1 . . . . . . . . . . . . . . . . . Combat 4 | . . . . . . . . . . . . . . 1 . . . . . . . . . . . 2 . . . . 1 . . Robot Hacks Applied 21 | . . . . . . 13 . . 3 . . . . 1 . 1 . . . . . . . . . 2 . . . . 1 . . parse_system 8 | . . . . . . 4 . . . . . . . 1 . . . . . . . . . . . 2 . . . . 1 . . no_distress 5 | . . . . . . 4 . . 1 . . . . . . . . . . . . . . . . . . . . . . . . find_chute 6 | . . . . . . 3 . . 2 . . . . . . 1 . . . . . . . . . . . . . . . . . find_fabricator 1 | . . . . . . 1 . . . . . . . . . . . . . . . . . . . . . . . . . . . find_recycling 1 | . . . . . . 1 . . . . . . . . . . . . . . . . . . . . . . . . . . . Manual 1 | . . . . . . . . . . . . . . . . . . . . . . . . . . . . . . . 1 . . Relay Couplers Released 1 | . . . . . . . . . . . . . . . . . . . . . . . 1 . . . . . . . . . . Machine Destruction 1 | . . . . . . . . . . . . . . . . . . . . . . . 1 . . . . . . . . . . Fabnet Peak Effective % . | . . . . . . . . . . . . . . . . . . . . . . . . . . . . . . . . . . Robots Rewired 5 | . . . . . . . . . . . . . . . . . . . . . . . . . . 5 . . . . . . . Allies Hacked . | . . . . . . . . . . . . . . . . . . . . . . . . . . . . . . . . . . Hacks Repelled . | . . . . . . . . . . . . . . . . . . . . . . . . . . . . . . . . . . Allies | -11 -10 -10 -10 -9 -8 -7 -7 -7 -6 -6 -6 -6 -6 -6 -5 -5 -5 -5 -5 -5 -5 -4 -4 -4 -4 -4 -3 -3 -3 -3 -2 -1 -1 -------- Run | Jun Mat Min Exi Min Mat Fac Was Fac Fac Was Fac Low Low Dat Pro Fac Was Fac Upp Upp Zhi Pro Fac Upp Upp War Pro Res Arm Lab Res Acc Com Total Allies 27 | . . . . . . 1 . 4 4 . 1 . . . . 1 . 1 . . . . 7 . . 5 . 2 . . . . 1 Largest Group 5 | . . . . . . 1 . 2 2 . 1 . . . . 1 . 1 . . . . 4 . . 5 . 1 . . . . 1 Highest-Rated Group 288 | . . . . . . 26 . 20 36 . 26 . . . . 26 . 26 . . . . 142 . . 288 . 26 . . . . 26 Highest-Rated Ally 65 | . . . . . . 26 . 10 26 . 26 . . . . 26 . 26 . . . . 46 . . 65 . 26 . . . . 26 Total Orders 2 | . . . . . 1 . . . . . 1 . . . . . . . . . . . . . . . . . . . . . . STAY 1 | . . . . . . . . . . . 1 . . . . . . . . . . . . . . . . . . . . . . EXPLORE 1 | . . . . . 1 . . . . . . . . . . . . . . . . . . . . . . . . . . . . Ally Attacks 23 | . . . . . . . . . . . . . . . . . . . . . . . 23 . . . . . . . . . . Total Damage 514 | . . . . . . . . . . . . . . . . . . . . . . . 514 . . . . . . . . . . Kills . | . . . . . . . . . . . . . . . . . . . . . . . . . . . . . . . . . . Allies Corrupted . | . . . . . . . . . . . . . . . . . . . . . . . . . . . . . . . . . . Allies Melted 1 | . . . . . . . . . . . . . . . . . . . . . . . 1 . . . . . . . . . . Intel | -11 -10 -10 -10 -9 -8 -7 -7 -7 -6 -6 -6 -6 -6 -6 -5 -5 -5 -5 -5 -5 -5 -4 -4 -4 -4 -4 -3 -3 -3 -3 -2 -1 -1 ------- Run | Jun Mat Min Exi Min Mat Fac Was Fac Fac Was Fac Low Low Dat Pro Fac Was Fac Upp Upp Zhi Pro Fac Upp Upp War Pro Res Arm Lab Res Acc Com Robot Analysis Total 10 | . . . . . . 1 . . . . 1 . . . . 3 . 1 . . 4 . . . . . . . . . . . . Derelict Logs Recovered 11 | . . 2 . . . . . . . . . . 1 . 1 . . . 2 1 . 1 . 1 2 . . . . . . . . Drone Launches 7 | . . . . . 7 . . . . . . . . . . . . . . . . . . . . . . . . . . . . Drone Recoveries 6 | . . . . . 6 . . . . . . . . . . . . . . . . . . . . . . . . . . . . Exploration | -11 -10 -10 -10 -9 -8 -7 -7 -7 -6 -6 -6 -6 -6 -6 -5 -5 -5 -5 -5 -5 -5 -4 -4 -4 -4 -4 -3 -3 -3 -3 -2 -1 -1 ------------- Run | Jun Mat Min Exi Min Mat Fac Was Fac Fac Was Fac Low Low Dat Pro Fac Was Fac Upp Upp Zhi Pro Fac Upp Upp War Pro Res Arm Lab Res Acc Com Turns Passed 15849 | 96 763 559 411 78 2238 1860 74 1164 1626 33 858 62 90 36 107 940 12 507 77 65 38 142 1086 115 140 235 205 960 19 30 421 113 689 Spaces Moved 29277 | 58 374 292 235 24 734 3403 191 2466 3869 146 2361 252 329 142 441 2457 70 1053 338 267 152 584 2603 287 342 864 235 2071 53 122 1212 287 963 Core 28 | 9 . . . . 9 . . . . . . . . . . . . . . . . . . . . . . . . . . . 10 Treads 1699 | 49 374 292 235 24 725 . . . . . . . . . . . . . . . . . . . . . . . . . . . . Legs . | . . . . . . . . . . . . . . . . . . . . . . . . . . . . . . . . . . Wheels . | . . . . . . . . . . . . . . . . . . . . . . . . . . . . . . . . . . Hover . | . . . . . . . . . . . . . . . . . . . . . . . . . . . . . . . . . . Flight 27550 | . . . . . . 3403 191 2466 3869 146 2361 252 329 142 441 2457 70 1053 338 267 152 584 2603 287 342 864 235 2071 53 122 1212 287 953 Fastest Speed 15 | 50 160 160 160 240 158 27 27 26 17 17 17 17 17 17 17 17 17 17 17 17 17 17 15 17 17 17 18 18 20 20 17 27 26 Average Speed 31 | 142 160 160 169 240 238 29 27 26 19 17 17 17 17 17 17 17 17 17 17 17 17 17 16 17 17 17 18 19 20 20 25 31 32 Slowest Speed 850 | 160 160 160 240 240 850 114 27 95 23 17 23 17 17 17 17 103 17 17 17 17 17 17 99 17 17 18 18 22 20 20 100 32 50 Overloaded Moves 30 | . . . . . . . . . . . . . . . . . . . . . . . . . . . . . . . 30 . . Propulsion Burnouts . | . . . . . . . . . . . . . . . . . . . . . . . . . . . . . . . . . . Robots Hopped 224 | . . . . . . 49 2 20 20 . 25 . . . . 25 . 12 . 2 . 6 10 . . 5 2 18 . . 15 6 7 Cave-ins Triggered 2 | . . . . . . . . . . . . . . . . . . . . . . . . . . . . . . . . . 2 Teleports 1 | . . . . . . . . . . . . . . . . . . . . . . . . . . . . . 1 . . . . Exploration Rate (%) 53 | 4 69 78 60 6 42 63 77 51 64 77 38 43 62 77 70 58 71 22 57 45 62 69 52 49 59 94 56 52 8 93 37 10 29 Regions Visited 33 Branch Regions 18 Pre-discovered Areas 11 | . . . 1 . . . . . . . . . 1 1 1 . . . 1 . 3 . . 1 2 . . . . . . . . Known Exits Taken 12 | . 1 . . . 1 . . 1 . . 1 . . . 1 . . 1 . . . 1 1 . . . 1 1 . . 1 1 . Unknown Exits Taken 15 | 1 . 1 1 1 . . . . . . . 1 1 1 . . . . 1 1 1 . . 1 1 1 . . 1 1 . . . Scrap Searched 17 | . . 1 . . . . . . . . . 1 . . 3 . . . 2 1 . 3 . 2 3 . 1 . . . . . . Spaces Dug 456 | . 1 6 . . . 34 3 38 57 . 50 20 1 . 2 35 . 14 . 4 . 25 64 . 4 . . 62 . . 7 5 24 Terrain Destroyed 741 | . 3 18 . 29 70 34 3 38 57 . 50 43 67 . 2 35 . 47 . 4 . 56 64 . 4 . . 62 . . 26 5 24 Melee 411 | . 1 . . . . 34 3 38 57 . 50 . 1 . 2 35 . 14 . 4 . 6 64 . 4 . . 62 . . 7 5 24 Projectile 25 | . . . . 5 20 . . . . . . . . . . . . . . . . . . . . . . . . . . . . AOE 305 | . 2 18 . 24 50 . . . . . . 43 66 . . . . 33 . . . 50 . . . . . . . . 19 . . Terrain Rammed . | . . . . . . . . . . . . . . . . . . . . . . . . . . . . . . . . . . Walls Destroyed . | . . . . . . . . . . . . . . . . . . . . . . . . . . . . . . . . . . Machines Disabled . | . . . . . . . . . . . . . . . . . . . . . . . . . . . . . . . . . . Actions | -11 -10 -10 -10 -9 -8 -7 -7 -7 -6 -6 -6 -6 -6 -6 -5 -5 -5 -5 -5 -5 -5 -4 -4 -4 -4 -4 -3 -3 -3 -3 -2 -1 -1 --------- Run | Jun Mat Min Exi Min Mat Fac Was Fac Fac Was Fac Low Low Dat Pro Fac Was Fac Upp Upp Zhi Pro Fac Upp Upp War Pro Res Arm Lab Res Acc Com Total 34314 | 69 475 350 249 38 1095 4072 204 2845 4540 153 2645 267 354 153 462 2833 69 1326 356 275 164 600 3113 352 413 947 394 2463 56 125 1272 295 1290 Wait 3675 | . 41 11 8 3 236 458 13 307 473 2 209 9 14 . 17 261 . 246 19 7 . 6 413 66 67 54 162 269 . . 27 8 269 Move 28820 | 57 373 291 234 23 733 3311 187 2425 3831 145 2310 251 328 141 440 2411 69 1030 337 262 151 572 2582 286 341 856 231 2034 52 121 1181 275 949 Hop 202 | . . . . . . 43 1 20 18 . 25 . . . . 21 . 10 . 2 . 5 10 . . 2 1 18 . . 15 5 6 Pick Up 156 | 6 8 9 2 . 19 19 . 18 13 1 7 . . 4 . 12 . 4 . . 2 2 11 . . 2 . 5 . 1 5 2 4 Fast Attach 126 | 4 2 2 . 1 8 22 . 2 15 2 10 1 1 . . 10 . 2 . . 4 . 7 . . 8 . 12 . . 4 . 9 Attach 108 | 2 1 2 . 1 7 26 . 3 9 . 9 1 2 2 . 9 . 4 . . 1 3 6 . . 2 . 6 1 . 10 . 1 Detach 67 | . 1 . . 2 7 16 . 1 5 1 7 1 1 . . 9 . 2 . . 1 . 2 . . 2 . 6 . . 2 . 1 Swap 82 | . 6 6 2 2 4 8 . 9 15 . 6 . . . . 7 . 2 . . . . 8 . . . . . 1 3 3 . . Drop 157 | . 7 8 3 . 11 30 . 8 23 2 1 1 1 4 . 9 . 4 . . 5 1 9 . . 11 . 10 . . 3 . 6 Fire 128 | . 35 11 . 3 61 . . . . . . 3 6 . . . . 2 . . . 3 . . . . . . . . 4 . . Melee 619 | . 1 10 . . 7 89 3 52 87 . 61 . 1 2 5 59 . 20 . 4 . 8 65 . 5 10 . 77 2 . 18 5 28 Ram . | . . . . . . . . . . . . . . . . . . . . . . . . . . . . . . . . . . Kick . | . . . . . . . . . . . . . . . . . . . . . . . . . . . . . . . . . . Crush 5 | . . . . 3 2 . . . . . . . . . . . . . . . . . . . . . . . . . . . . Escape Stasis 157 | . . . . . . 45 . . 51 . . . . . . 18 . . . . . . . . . . . 26 . . . . 17 Rewire . | . . . . . . . . . . . . . . . . . . . . . . . . . . . . . . . . . . Trap 12 | . . . . . . 5 . . . . . . . . . 7 . . . . . . . . . . . . . . . . . Miscellaneous . | . . . . . . . . . . . . . . . . . . . . . . . . . . . . . . . . . . Route ------- -11/Junkyard -10/Materials (discovered 2 exits: [*Mat] / *Min) -10/Mines (discovered 2 exits: [*Mat] / *Exi) -10/Exiles (discovered 2 exits: [*Min x2]) -9/Mines -8/Materials (discovered 2 exits: *Fac x2) -7/Factory (discovered 5 exits: *Fac x2 / [*Sto] / [*Low x2]) -7/Waste -7/Factory (discovered 7 exits: *Fac x4 / [*Sto] / [*Low x2]) -6/Factory (discovered 6 exits: *Fac x4 / Low x2) -6/Waste -6/Factory (discovered 4 exits: *Fac x2 / *Low x2) -6/Lower Caves -6/Lower Caves -6/Data Miner -5/Proximity Caves -5/Factory (discovered 5 exits: *Fac x4 / *Upp) -5/Waste -5/Factory (discovered 6 exits: Fac x4 / *Upp x2) -5/Upper Caves -5/Upper Caves -5/Zhirov -4/Proximity Caves -4/Factory (discovered 8 exits: *Res x4 / *Upp x2 / Ext x2) -4/Upper Caves -4/Upper Caves -4/Warlord -3/Proximity Caves -3/Research (discovered 4 exits: *Res / *Arm / *Qua x2) -3/Armory -3/Lab -2/Research (discovered 4 exits: *Acc x3 / [*Tes]) -1/Access -1/Command (discovered 2 exits: *Sur x2) History --------- Turn | Location | Event 2 | -11/Junkyard | Met Revision 17 2 | -11/Junkyard | Discovered new exit (range 16) 97 | -11/Junkyard | Entered Materials 287 | -10/Materials | Identified exit to Mines 306 | -10/Materials | Build established: Mutant 476 | -10/Materials | Discovered new exit (range 11) 860 | -10/Materials | Entered Mines 902 | -10/Mines | Met a Derelict bent on vengeance 1049 | -10/Mines | A weapon hastily lodged in a ceiling crevice suddenly fell to the ground 1112 | -10/Mines | Found the Drone Emporium 1118 | -10/Mines | Found Prototype Device 1118 | -10/Mines | Identified Sensor Drone Bay 1165 | -10/Mines | Discovered new exit (range 15) 1248 | -10/Mines | Learned location of 1 exit from Materials 1343 | -10/Mines | Learned Materials stockpile data 1413 | -10/Mines | Deemed a non-threat by the Exiles lab entrance 1413 | -10/Mines | Discovered new exit (range 5) 1419 | -10/Mines | Entered Exiles 1440 | -10/Exiles | Discovered new exit (range 15) 1459 | -10/Exiles | Met 8R-AWN 1485 | -10/Exiles | Met EX-HEX 1531 | -10/Exiles | Met EX-BIN 1554 | -10/Exiles | Aligned with FarCom system 1555 | -10/Exiles | Given EX-Vault access code 1592 | -10/Exiles | Opened EX-Vault 1603 | -10/Exiles | Found AWS/Gauss 1639 | -10/Exiles | Warned to stay clear of 0b10 Research branches 1659 | -10/Exiles | Exiles lab attacked by MAIN.C 1700 | -10/Exiles | Learned location of Zion (-7) 1802 | -10/Exiles | Discovered new exit (range 10) 1830 | -10/Exiles | Left Exiles lab with AWS/Gauss 1830 | -10/Exiles | Entered Mines 1849 | -9/Mines | Discovered new exit (range 7) 1885 | -9/Mines | Destroyed 7 combat bots 1908 | -9/Mines | Entered Materials 1908 | -8/Materials | Evolved 4 slots: Propulsion x2, Utility x2 1909 | -8/Materials | Identified exit to Factory 2455 | -8/Materials | Build established: Skirmisher 3457 | -8/Materials | Discovered exit to Factory (range 7) 4146 | -8/Materials | Entered Factory 4146 | -7/Factory | Evolved 2 slots: Utility x2 4234 | -7/Factory | Discovered new exit (range 3) 4316 | -7/Factory | Discovered new exit (range 16) 4487 | -7/Factory | Discovered new exit (range 8) 4564 | -7/Factory | Repaired Imp. VTOL Module 4651 | -7/Factory | Repaired Reaction Control System 4709 | -7/Factory | Discovered new exit (range 8) 4798 | -7/Factory | Fabricated Imp. Hacking Suite (x1) 4876 | -7/Factory | Build established: Hacker-Sprinter 4946 | -7/Factory | Search patrols dispatched 5508 | -7/Factory | Fabricated Cld. VTOL Module? 5521 | -7/Factory | Discovered new exit (range 12) 5723 | -7/Factory | Repaired Greatsword 5726 | -7/Factory | Fabricated Cld. VTOL Module? 5863 | -7/Factory | Fabricated Adv. Hacking Suite? 5940 | -7/Factory | Fabricated Adv. Hacking Suite? 6006 | -7/Factory | Manually triggered Chute Trap 6006 | -7/Factory | Sucked down chute 6006 | -7/Factory | Entered Waste 6008 | -7/Waste | Spotted C-40 Crusher 6011 | -7/Waste | Spotted C-40 Crusher 6012 | -7/Waste | Spotted C-40 Crusher 6015 | -7/Waste | Spotted C-40 Crusher 6016 | -7/Waste | Spotted C-40 Crusher 6021 | -7/Waste | EMP discharged 6021 | -7/Waste | System corruption reached 10% 6033 | -7/Waste | Spotted C-40 Crusher 6076 | -7/Waste | Discovered new exit (range 15) 6080 | -7/Waste | Entered Factory 6170 | -7/Factory | Identified exit to Factory 6205 | -7/Factory | Repaired Imp. Light Armor Plating 6219 | -7/Factory | Discovered new exit (range 15) 6288 | -7/Factory | Build established: Wizard-Sprinter 6337 | -7/Factory | Discovered new exit (range 11) 6358 | -7/Factory | Fabricated Adv. Hacking Suite? 6683 | -7/Factory | Discovered new exit (range 10) 6977 | -7/Factory | Fabricated Imp. System Shield? 7244 | -7/Factory | Entered another Factory area 7244 | -6/Factory | Evolved 2 slots: Propulsion x1, Utility x1 7329 | -6/Factory | Identified exit to Lower Caves 7329 | -6/Factory | Identified exit to Factory 7337 | -6/Factory | Repaired Greatsword 7571 | -6/Factory | Fabricated Exp. Cesium-ion Thruster? 7594 | -6/Factory | Search patrols dispatched 7844 | -6/Factory | Fabricated Exp. Cesium-ion Thruster (x1) 8065 | -6/Factory | Fabricated Exp. Cesium-ion Thruster (x1) 8131 | -6/Factory | Fabricated Exp. Utility Shielding? 8366 | -6/Factory | Repaired Greatsword 8408 | -6/Factory | Central database locked down 8501 | -6/Factory | Fabricated Adv. System Shield (x1) 8612 | -6/Factory | Fabricated Adv. Hacking Suite (x1) 8870 | -6/Factory | Sucked down chute 8870 | -6/Factory | Entered Waste 8879 | -6/Waste | Spotted C-40 Crusher 8879 | -6/Waste | Found Prototype Hackware 8881 | -6/Waste | Spotted C-40 Crusher 8882 | -6/Waste | Spotted C-40 Crusher 8896 | -6/Waste | Discovered new exit (range 15) 8896 | -6/Waste | Spotted C-40 Crusher 8896 | -6/Waste | Spotted C-40 Crusher 8899 | -6/Waste | Found Prototype Processor 8899 | -6/Waste | Identified Exp. Signal Interpreter 8903 | -6/Waste | Entered Factory 9037 | -6/Factory | Discovered exit to Factory (range 5) 9055 | -6/Factory | Repaired Greatsword? 9090 | -6/Factory | Repaired Cld. VTOL Module? 9094 | -6/Factory | Discovered exit to Factory (range 10) 9154 | -6/Factory | Identified Exp. Hacking Suite 9322 | -6/Factory | Fabricated Exp. Hacking Suite? 9390 | -6/Factory | Repaired Exp. Cesium-ion Thruster? 9412 | -6/Factory | Fabricated Cld. Nuclear Pulse Thruster (x1) 9413 | -6/Factory | Repaired Exp. Cesium-ion Thruster? 9420 | -6/Factory | Fabricated Cld. Nuclear Pulse Thruster? 9526 | -6/Factory | Repaired Exp. Cesium-ion Thruster? 9582 | -6/Factory | Repaired Exp. Utility Shielding 9598 | -6/Factory | Fabricated Exp. Hacking Suite (x1) 9701 | -6/Factory | Fabricated Exp. Hacking Suite (x1) 9761 | -6/Factory | Entered Lower Caves 9821 | -6/Lower Caves | Discovered new exit (range 10) 9823 | -6/Lower Caves | Entered another Lower Caves area 9902 | -6/Lower Caves | Discovered new exit (range 7) 9913 | -6/Lower Caves | Entered Data Miner 9913 | -6/Data Miner | Discovered new exit (range 6) 9917 | -6/Data Miner | Met Data Miner 9936 | -6/Data Miner | Learned location of Section 7 (-2) 9936 | -6/Data Miner | Acquired the access code to Warlord's prototype stash 9939 | -6/Data Miner | Received God Mode back door access code from Data Miner 9948 | -6/Data Miner | Data Conduit disabled 9949 | -6/Data Miner | Entered Proximity Caves 10000 | -5/Proximity Caves | Spotter reported a threat 10013 | -5/Proximity Caves | Learned location of Armory (-3) 10055 | -5/Proximity Caves | Discovered exit to Factory (range 5) 10056 | -5/Proximity Caves | Entered Factory 10056 | -5/Factory | Evolved 2 slots: Utility x2 10145 | -5/Factory | Repaired Greatsword 10161 | -5/Factory | Identified exit to Factory 10192 | -5/Factory | Repaired Cld. Nuclear Pulse Thruster 10280 | -5/Factory | Fabricated Lgt. Regenerative Plating? 10610 | -5/Factory | Fabricated Exp. System Shield? 10628 | -5/Factory | Discovered new exit (range 15) 10699 | -5/Factory | Repaired Exp. Utility Shielding? 10741 | -5/Factory | Fabricated Mni. Smartbomb Launcher? 10918 | -5/Factory | Fabricated Exp. Propulsion Shielding (x1) 10947 | -5/Factory | Fabricated Exp. Utility Shielding (x1) 10996 | -5/Factory | Manually triggered Chute Trap 10996 | -5/Factory | Sucked down chute 10996 | -5/Factory | Entered Waste 11000 | -5/Waste | Spotted C-40 Crusher 11002 | -5/Waste | Spotted C-40 Crusher 11002 | -5/Waste | Spotted C-40 Crusher 11002 | -5/Waste | Spotted C-40 Crusher 11006 | -5/Waste | Spotted C-40 Crusher 11006 | -5/Waste | Discovered new exit (range 13) 11006 | -5/Waste | Spotted C-40 Crusher 11008 | -5/Waste | Entered Factory 11066 | -5/Factory | Repaired Greatsword 11078 | -5/Factory | Identified exit to Upper Caves 11270 | -5/Factory | Fabricated Centrium Greatsword (x1) 11299 | -5/Factory | Fabricated Exp. Propulsion Shielding (x1) 11515 | -5/Factory | Entered Upper Caves 11529 | -5/Upper Caves | Attracted the attention of an 0b10 checkpoint 11561 | -5/Upper Caves | Learned 12 Factory zone layouts 11591 | -5/Upper Caves | Discovered new exit (range 3) 11592 | -5/Upper Caves | Entered another Upper Caves area 11594 | -5/Upper Caves | Learned Factory terminal intel 11630 | -5/Upper Caves | Attracted the attention of an 0b10 checkpoint 11634 | -5/Upper Caves | Spotted B-75 Beast 11655 | -5/Upper Caves | Discovered new exit (range 8) 11657 | -5/Upper Caves | Entered Zhirov 11657 | -5/Zhirov | Discovered new exit (range 4) 11661 | -5/Zhirov | Met Zhirov 11665 | -5/Zhirov | Learned location of Quarantine (-3) 11665 | -5/Zhirov | Learned location of Testing (-2) 11665 | -5/Zhirov | Learned location of Command (-1) 11667 | -5/Zhirov | Zhirov requested help retrieving the SGEMP Prototype 11671 | -5/Zhirov | Found Alien Artifact 11671 | -5/Zhirov | Identified Integrated Reactor 11671 | -5/Zhirov | Installed Integrated Reactor, increased core energy generation (+10) 11688 | -5/Zhirov | Found Alien Artifact 11695 | -5/Zhirov | Entered Proximity Caves 11697 | -4/Proximity Caves | Spotted B-86 Titan 11779 | -4/Proximity Caves | Attracted the attention of an 0b10 outpost 11813 | -4/Proximity Caves | Attracted the attention of an 0b10 checkpoint 11835 | -4/Proximity Caves | Discovered exit to Factory (range 8) 11837 | -4/Proximity Caves | Entered Factory 11837 | -4/Factory | Evolved 2 slots: Power x1, Propulsion x1 11838 | -4/Factory | Identified exit to Extension 11838 | -4/Factory | Identified exit to Research 11839 | -4/Factory | Loaded intel: 28 terminal locations 11988 | -4/Factory | Repaired Centrium Greatsword 12028 | -4/Factory | Identified exit to Upper Caves 12087 | -4/Factory | Allied Derelicts attacked 0b10 via Garrison Access 12088 | -4/Factory | Spotted B-86 Titan 12187 | -4/Factory | Repaired Exp. Propulsion Shielding 12419 | -4/Factory | Fabricated Cld. Field Propulsion Drive (x1) 12465 | -4/Factory | Fabricated Cld. Field Propulsion Drive (x1) 12680 | -4/Factory | Fabricated Cld. Field Propulsion Drive? 12802 | -4/Factory | Repaired Mni. Smartbomb Launcher? 12923 | -4/Factory | Entered Upper Caves 13038 | -4/Upper Caves | Discovered new exit (range 3) 13038 | -4/Upper Caves | Entered another Upper Caves area 13177 | -4/Upper Caves | Discovered new exit (range 10) 13178 | -4/Upper Caves | Entered Warlord 13203 | -4/Warlord | Visited the Vortex Lab 13205 | -4/Warlord | Found Prototype Energy Gun 13218 | -4/Warlord | Met Warlord 13226 | -4/Warlord | Warlord's base attacked by MAIN.C 13230 | -4/Warlord | Opened Warlord's prototype stash 13232 | -4/Warlord | Found Prototype Device 13232 | -4/Warlord | Identified Thermal Barrier 13266 | -4/Warlord | Found Prototype Device 13266 | -4/Warlord | Identified Minesniffer Drone Bay 13408 | -4/Warlord | Opened side exit 13412 | -4/Warlord | Discovered new exit (range 11) 13413 | -4/Warlord | Entered Proximity Caves 13616 | -3/Proximity Caves | Discovered exit to Research (range 9) 13618 | -3/Proximity Caves | Entered Research 13618 | -3/Research | Evolved 2 slots: Utility x2 13619 | -3/Research | Identified exit to Quarantine 13804 | -3/Research | Fabricated Exp. Heat Sink? 13820 | -3/Research | Identified Transdimensional Reconstructor 14094 | -3/Research | Discovered exit to Quarantine (range 4) 14170 | -3/Research | Discovered new exit (range 14) 14206 | -3/Research | Repaired Centrium Greatsword 14225 | -3/Research | Identified exit to Armory 14297 | -3/Research | Repaired Exp. Propulsion Shielding? 14345 | -3/Research | Repaired Broken Electron Diverter 14393 | -3/Research | Repaired Broken Imp. Diametric Drive? 14447 | -3/Research | Discovered new exit (range 10) 14502 | -3/Research | Fabricated Exp. Cloaking Device? 14530 | -3/Research | Repaired Exp. Utility Shielding? 14578 | -3/Research | Entered Armory 14595 | -3/Armory | Warped through subspace to slip node 14595 | -3/Armory | Discovered new exit (range 1) 14597 | -3/Armory | Entered Lab 14597 | -3/Lab | Discovered new exit (range 9) 14600 | -3/Lab | Unable to decrypt terminal 14600 | -3/Lab | Opened the door to a hidden lab 14600 | -3/Lab | Detected by scanners 14601 | -3/Lab | Gained access to the hidden lab's interior 14605 | -3/Lab | Unable to decrypt terminal 14612 | -3/Lab | Found Deep Network Scanner 14614 | -3/Lab | Found Prototype Protection 14615 | -3/Lab | Identified Exp. Powered Armor 14618 | -3/Lab | Confronted by A5 14626 | -3/Lab | Unable to decrypt terminal 14627 | -3/Lab | Entered Research 14627 | -2/Research | Warlord forces began assault on 0b10 14627 | -2/Research | Evolved 2 slots: Utility x2 14631 | -2/Research | Identified exit to Access 14698 | -2/Research | Repaired Centrium Greatsword 14714 | -2/Research | Discovered new exit (range 15) 14737 | -2/Research | Research machine network offline 14818 | -2/Research | Spotted Tracker 14818 | -2/Research | Spotted Tracker 14836 | -2/Research | Destroyed Tracker 14841 | -2/Research | Destroyed Tracker 14841 | -2/Research | Spotted Combat Programmer 14849 | -2/Research | Spotted Combat Programmer 14857 | -2/Research | Spotted B-90 Cyclops 14863 | -2/Research | System corruption reached 10% 14880 | -2/Research | Lost 7 parts (3p3u1w) 14922 | -2/Research | Core integrity fell below 50% 14948 | -2/Research | Lost 3 parts (2u1w) 14958 | -2/Research | Met up with Warlord 14964 | -2/Research | Hacked God Mode, triggering a massive explosion 14967 | -2/Research | System corruption reached 30% 15033 | -2/Research | Spotted Executioner 15033 | -2/Research | Spotted Striker 15036 | -2/Research | Spotted Striker 15048 | -2/Research | Entered Access 15048 | -1/Access | Evolved 2 slots: Utility x2 15064 | -1/Access | Identified exit to Command 15122 | -1/Access | Found Enh. Force Lance 15145 | -1/Access | Spotted B-99 Colossus 15161 | -1/Access | Entered Command 15181 | -1/Command | Identified exit to Surface 15184 | -1/Command | Lost 7 parts (2n4u1w) 15321 | -1/Command | Repaired Imp. Diametric Drive 15345 | -1/Command | Spotted B-99 Colossus 15446 | -1/Command | Disengaged cave seal 15481 | -1/Command | Crushed by falling debris 15489 | -1/Command | Crushed by falling debris 15520 | -1/Command | Lost 5 parts (1p3n1u) 15522 | -1/Command | Welcomed Warlord to Command 15813 | -1/Command | Spotted Executioner 15813 | -1/Command | Spotted Executioner 15813 | -1/Command | Spotted Striker 15813 | -1/Command | Spotted Alpha 7 15813 | -1/Command | Spotted Executioner 15813 | -1/Command | Spotted Executioner 15813 | -1/Command | Spotted Striker 15813 | -1/Command | Spotted Alpha 7 15825 | -1/Command | Spotted B-99 Colossus 15829 | -1/Command | Warlord destroyed during the assault 15834 | -1/Command | Spotted B-99 Colossus 15841 | -1/Command | Core integrity fell below 50% 15847 | -1/Command | Core integrity fell below 20% 15850 | -1/Command | Destroyed by B-99 Colossus with Multirail Last Messages --------------- 15847_ Knocked back. 15847_ Triggered Stasis Trap. 15847_ Penetrated by Slug. 15847_ A bubble of rippling energy engulfs the area. 15847_ Field strength at 94. 15848_ B-99 Colossus activates siege mode. 15848_ Stasis field depleted. 15848_ Field strength at 88. 15848_ Field strength at 14. 15849_ W-44 Eye system corruption misinterpreted. 15849_ W-44 Eye triggered Stasis Trap. 15849_ A bubble of rippling energy engulfs the area. 15849_ Field strength at 93. 15849_ Field strength at 82. 15849_ Stasis field depleted. 15850_ Field strength at 76. 15850_ Knocked back. 15850_ Penetrated by Slug. 15850_ Slug penetrates Wall. [Achievement: 30k Club] Map ----- +----------------------------------------------------+ | ???????????????????????????###+###????# ?????????? | | ???????????????????????????# ###### #######??? | | ???????????????????????????# "T + ? | | ???????????????????????????# "" #??# | | ???????????????????????????# ^ #??# | | ???????????????????????????#! ######" #??# | | ??????????????????????????####/#####??## #???? | | ??????????????????????????# = #??# #?????? | | ??????????????????????????# % #??## ##????? | | ??????????????????????????# #?## ] ###### | | ??????????????????????????# **!#?# | | ??????????????????????????# **!#??# !! | | ??????????????????????????# * *!!#??# ! | | | ??????????????????????????# #??# | !###### | | ??????????????????????????# #??## !=##?# | | ??????????????????????????# ! = #???# #??#! | | ??????????????????????????############## #??# | | ?????????????????????????????## ### #??# | | ????????????????????????????########## # #??# | | ???????????????????????#####;##########" #??# | | ???????????????????????# #### #??# | | ???????????????????????# #####+######## | | ???????????????????????# ^ ### | | ???????????????????????# ##" ! | | ???????????????????????# ^ ### "" ! | | ???????????????????????# @^ < ###""" * | | ??????????????????????#; ^% "" ###"R | | ??????????????????????## ###""" | | ???????????????????????#%%^ ###""" | | ???????????????????????# ^ ^ ### | | ???????????????????????# BB BB### | | ???????????????????????#% BB BB### | | ???????????????????????###; ;;###### """"T""" | | ?????????????????????????# E^ ####??#""""""""" | | ?????????????????????????#;%E ^^ ###????########## | | ?????????????????????????# 7% ##?????????????? | | ?????????????????????????#;E 7 ##?????????????? | | ?????????????????????????"% ^ ^ ##?????????????? | | ????????????????????????### *^###?????????????? | | ?????????????????????????#%^ * * ##?????????????? | | ?????????????????????????##%!![!%###?????????????? | | ??????????????????????????#^w^== ###?????????????? | | ??????????????????????????#[///%####?????????????? | | ??????????????????????????#"*%/ #???????????????? | | ???????????????#############/! ##???????????????? | | ????????????? % %!###########??????? | | ????????????? *%+ ! #??????? | | ????????????? %=# #??????? | | ????????????? % " #??????? | | ???????# #########+##"+#### #??????? | +----------------------------------------------------+ Best States ------------- Heat Dissipation 78 Energy Generation 55 Energy Capacity 280 Matter Stores 300 Matter Capacity 300 Sight Range 16 Terrain Scan Range 24 Terrain Scan Density 210 Cloak Strength 4 Armor Coverage 225 Resistance: TH 25 Core Shielding 40 Propulsion Shielding 90 Utility Shielding 90 Weapon Shielding 66 Evasion (%) 72 Recoil Reduction 4 Kinecelleration 30 Offensive Hacking 87 Defensive Hacking 30 Authchip Count 3 Item Schematics ----------------- Lgt. Deuterium Engine | -8/Materials | Scanalyzed Hacking Suite | -8/Materials | Scanalyzed Imp. Hacking Suite | -7/Factory | Hacked Cld. VTOL Module | -7/Factory | Hacked Adv. Hacking Suite | -7/Factory | Hacked Imp. System Restoration Module | -7/Factory | Hacked Imp. System Shield | -7/Factory | Hacked Mic. Nuclear Core | -7/Factory | Scanalyzed Med. Storage Unit | -7/Factory | Hacked Greatsword | -7/Factory | Scanalyzed Imp. Light Armor Plating | -7/Factory | Scanalyzed Adv. System Shield | -6/Factory | Hacked Exp. Cesium-ion Thruster | -6/Factory | Hacked Exp. Utility Shielding | -6/Factory | Hacked Lgt. Fission Core | -6/Factory | Scanalyzed Exp. Hacking Suite | -6/Factory | Scanalyzed Hvy. Rocket Launcher | -6/Factory | Scanalyzed Cld. Nuclear Pulse Thruster | -6/Factory | Hacked Combat Drone Bay | -6/Data Miner | Free Lgt. Regenerative Plating | -6/Data Miner | Free Enh. Flexi-carbon Leg | -6/Data Miner | Free Prc. Matter Filter | -6/Data Miner | Free Plasma Sword | -6/Data Miner | Free Adv. Medium Treads | -6/Data Miner | Free Adv. Focal Shield | -6/Data Miner | Free Adv. Datajack | -6/Data Miner | Free Mni. Smartbomb Launcher | -5/Factory | Hacked Exp. System Shield | -5/Factory | Hacked Imp. Datajack | -5/Factory | Scanalyzed Exp. Propulsion Shielding | -5/Factory | Hacked Centrium Greatsword | -5/Factory | Hacked Assault Drone Bay | -5/Zhirov | Free Exp. Heat Sink | -5/Zhirov | Free Exp. Optical Array | -5/Zhirov | Free Imp. Arc Thrower | -5/Zhirov | Free Cld. Field Propulsion Drive | -4/Factory | Hacked Imp. Diametric Drive | -3/Research | Scanalyzed Plasma Lance | -3/Research | Scanalyzed Electron Diverter | -3/Research | Scanalyzed Exp. Cloaking Device | -3/Research | Hacked Mic. Antimatter Reactor | -2/Research | Scanalyzed Robot Schematics ------------------ B-48 Gladiator | -6/Data Miner | Free A-15 Conveyor | -6/Data Miner | Free B-60 Warrior | -6/Data Miner | Free Y-54 Guardian | -6/Data Miner | Free M-22 Extractor | -6/Data Miner | Free Fabricated ------------ Imp. Hacking Suite | x1 | -7/Factory | Authchip Cld. VTOL Module | x1 | -7/Factory | Authchip Cld. VTOL Module | x1 | -7/Factory | Authchip Adv. Hacking Suite | x1 | -7/Factory | Authchip Adv. Hacking Suite | x1 | -7/Factory | Authchip Adv. Hacking Suite | x1 | -7/Factory | Authchip Imp. System Shield | x1 | -7/Factory | Authchip Exp. Cesium-ion Thruster | x1 | -6/Factory | Authchip Exp. Cesium-ion Thruster | x1 | -6/Factory | Authchip Exp. Cesium-ion Thruster | x1 | -6/Factory | Authchip Exp. Utility Shielding | x1 | -6/Factory | Authchip Adv. System Shield | x1 | -6/Factory | Authchip Adv. Hacking Suite | x1 | -6/Factory | Authchip Exp. Hacking Suite | x1 | -6/Factory | Authchip Cld. Nuclear Pulse Thruster | x1 | -6/Factory | Authchip Cld. Nuclear Pulse Thruster | x1 | -6/Factory | Authchip Exp. Hacking Suite | x1 | -6/Factory | Authchip Exp. Hacking Suite | x1 | -6/Factory | Authchip Lgt. Regenerative Plating | x1 | -5/Factory | Authchip Exp. System Shield | x1 | -5/Factory | Authchip Mni. Smartbomb Launcher | x1 | -5/Factory | Authchip Exp. Propulsion Shielding | x1 | -5/Factory | Authchip Exp. Utility Shielding | x1 | -5/Factory | Authchip Centrium Greatsword | x1 | -5/Factory | Authchip Exp. Propulsion Shielding | x1 | -5/Factory | Authchip Cld. Field Propulsion Drive | x1 | -4/Factory | Authchip Cld. Field Propulsion Drive | x1 | -4/Factory | Authchip Cld. Field Propulsion Drive | x1 | -4/Factory | Authchip Exp. Heat Sink | x1 | -3/Research | Authchip Exp. Cloaking Device | x1 | -3/Research | Authchip Alien Tech Used ----------------- Integrated Reactor Transdimensional Reconstructor Achievements -------------- 30k Club Let's See Who's Tougher Challenges ------------ None Game ------ Seed SmallParticleStreamer Manual? 0 Play Time 05:58:16 Cumulative 62.3 hours Start 2024.02.14 @ 18:14:41 End 2024.02.17 @ 16:56:54 Sessions 20 Manual Loads 0 Difficulty Rogue Special Mode None Game No. 47 Rogue 47 Adventurer 0 Explorer 0 Win Type - Total 1 Types 1/0/0/0/0/0/0/0/0 Lore% 55 Gallery% 53 Achievement% 45 Wizard Run 0 Options --------- ASCII 0 Keyboard 1 Movement Numpad Keybinds 0 Fullscreen 1 Font 18/Smallcaps Map View 76x50 Tactical HUD 1 Map Filters NONE Filters NONE Steam 1 RUN: 12cd2821-e0cb-45d1-9fb9-85a85fcf9d83